Cogmind - Beta 15 @@@ ROGUE MODE // 2025.08.30 @ 11:02:01 Player: Petvaria Result: Destroyed by G-47 Trooper with Particle Gun Performance ------------- Evolutions (2) 1000 Regions Visited (9) 1800 Robots Destroyed (97) 485 Value Destroyed (2535) 2535 Prototype IDs (24) 480 Alien Tech Used (0) 0 Bonus (1102) 1102 TOTAL SCORE: 7402 Bonus ------- High Alert Combat Kills 42 Follower Combat Kills 60 Entered Garrisons 200 Used RIF Installer 500 Aligned with FarCom 300 Cogmind --------- Core Integrity 0/550 Matter 108/300 Energy 100/100 System Corruption 1% Temperature Danger (437) Movement Core (350) Ox6 Location -8/Storage Parts ------- > --- POWER (1) -------- (None) > --- PROPULSION (4) --- (None) > --- UTILITY (4) ------ Large Storage Unit > --- WEAPON (2) ------- (None) > --- INVENTORY (15) --- Light Nuclear Core VTOL Module VTOL Module VTOL Module VTOL Module Cloak of Protection Hacking Suite Hacking Suite Hacking Suite Heavy Assault Rifle Heavy Assault Rifle Enhanced Autogun Improved Light Cannon Katana Peak State ------------ > --- POWER ------------ Micro Nuclear Core > --- PROPULSION ------- Light Treads Light Treads Light Treads Light Treads > --- UTILITY ---------- Large Storage Unit Insulated Plating Insulated Plating Insulated Plating > --- WEAPON ----------- High-powered Shotgun Enhanced Autogun > --- INVENTORY -------- Light Nuclear Core Light Treads Aluminum Leg VTOL Module VTOL Module VTOL Module VTOL Module Cloak of Protection Hacking Suite Hacking Suite Hacking Suite Heavy Assault Rifle Heavy Assault Rifle Enhanced Autogun Katana [Rating: 29] Favorites ----------- Power Light Ion Engine Engine Light Ion Engine Power Core Micro Nuclear Core Propulsion Light Treads Treads Light Treads Leg Aluminum Leg Wheel Compact Wheel Utility Large Storage Unit Device Cloak of Protection Storage Large Storage Unit Protection Light Armor Plating Weapon Enhanced Autogun Energy Gun Medium Laser Ballistic Gun Enhanced Autogun Slashing Weapon Katana Build | -11 -10 -10 -9 -9 -9 -8 -8 -8 -8 ------- Run | Yrd Mat Min Mat Min Exi Min Mat Gar Sto Slots Evolved 4 | . . . 2 . . . 2 . . Power . | . . . . . . . . . . Propulsion 2 | . . . 1 . . . 1 . . Utility 2 | . . . 1 . . . 1 . . Weapon . | . . . . . . . . . . Parts Attached 58 | 6 2 5 28 2 1 4 3 5 2 Power 9 | 1 . 1 3 1 . 2 . 1 . Engine 7 | 1 . 1 3 1 . 1 . . . Core 2 | . . . . . . 1 . 1 . Reactor . | . . . . . . . . . . Propulsion 23 | 2 . 3 15 . . 1 . 1 1 Treads 16 | 2 . . 12 . . 1 . 1 . Leg 5 | . . 1 3 . . . . . 1 Wheel 2 | . . 2 . . . . . . . Hover . | . . . . . . . . . . Flight . | . . . . . . . . . . Utility 12 | 1 1 . 6 . 1 . 2 1 . Device 1 | . . . . . 1 . . . . Storage 2 | 1 1 . . . . . . . . Processor . | . . . . . . . . . . Hackware . | . . . . . . . . . . Protection 9 | . . . 6 . . . 2 1 . Artifact . | . . . . . . . . . . Weapon 14 | 2 1 1 4 1 . 1 1 2 1 Energy Gun 2 | 1 1 . . . . . . . . Energy Cannon . | . . . . . . . . . . Ballistic Gun 11 | 1 . 1 4 1 . 1 1 1 1 Ballistic Cannon . | . . . . . . . . . . Launcher . | . . . . . . . . . . Special Weapon . | . . . . . . . . . . Impact Weapon . | . . . . . . . . . . Slashing Weapon 1 | . . . . . . . . 1 . Piercing Weapon . | . . . . . . . . . . Special Melee Weapon . | . . . . . . . . . . Unidentified Prototypes 1 | . . . 1 . . . . . . Corrupted Parts 1 | . . . 1 . . . . . . System Corruption 7 | . . . 7 . . . . . . Parts Lost 28 | . . 5 5 2 . 4 . 1 11 Power 5 | . . 1 2 . . 1 . . 1 Propulsion 12 | . . 3 1 1 . 1 . 1 5 Utility 7 | . . . 1 1 . 2 . . 3 Weapon 4 | . . 1 1 . . . . . 2 Highest Loss Streak 10 | . . 3 2 2 . 2 . 1 10 To Critical Strikes . | . . . . . . . . . . Average Backups 13 | 2 8 10 14 14 14 13 14 15 14 Power . | . 1 . . 1 1 . 1 1 1 Propulsion 4 | . 2 1 6 5 5 5 6 6 4 Utility 3 | . . 2 3 4 3 4 4 4 4 Weapon 3 | . 3 5 3 3 5 2 3 3 4 Tool/Special . | . . . . . . . . . . Unused Backups 22 | . . . 12 . 2 . . . 8 Power . | . . . . . . . . . . Propulsion 10 | . . . 6 . . . . . 4 Utility 4 | . . . . . 1 . . . 3 Weapon 7 | . . . 5 . 1 . . . 1 Tool/Special 1 | . . . 1 . . . . . . Average Slot Usage (%) 88 | . 85 83 87 99 77 90 83 92 89 Engine 10 | . 14 13 10 11 11 10 9 5 . Treads 28 | . 28 8 24 32 33 33 36 32 28 Leg 1 | . . 7 6 . . . . . . Wheel 1 | . . 11 1 . . . . . . Storage 11 | . 14 14 11 11 11 11 9 9 9 Protection 13 | . . . 11 21 21 13 11 23 24 Energy Gun 3 | . 14 14 . . . . . . . Ballistic Gun 16 | . 14 14 21 22 . 22 18 17 17 Peak Build Rating 29 | 6 7 7 19 18 17 19 25 29 29 Average Rating 14 | 4 6 6 15 16 10 17 22 26 26 On Entrance 14 | . 6 7 7 18 16 17 18 24 29 Naked Turns . | . . . . . . . . . . Heaviest Build 45 | 14 29 29 39 35 35 42 42 45 41 Greatest Support 80 | 40 40 40 60 60 60 60 80 80 80 Greatest Overweight (x) 11 | . . 1 1 . . . . . 11 Average Overweight (x) . | . . . . . . . . . . Largest Inventory Capacity 15 | 8 15 15 15 15 15 15 15 15 15 Average Capacity 14 | 6 14 15 15 15 15 15 15 15 15 Most Carried 15 | 4 11 14 15 15 15 15 15 15 15 Average Carried 13 | 2 8 10 14 14 14 13 14 14 14 Final Capacity 15 | 8 15 15 15 15 15 15 15 15 15 Final Carried 15 | 4 11 14 15 14 13 15 15 14 14 Class Distribution -------------------- 73% | Scavenger-Mutant 26% | Mutant Dominant Class ---------------- Mutant | -10/Materials Mutant | -10/Mines Scavenger-Mutant | -9/Materials Scavenger-Mutant | -9/Mines Scavenger-Mutant | -9/Exiles Scavenger-Mutant | -8/Mines Scavenger-Mutant | -8/Materials Scavenger-Mutant | -8/Garrison Scavenger-Mutant | -8/Storage Resources | -11 -10 -10 -9 -9 -9 -8 -8 -8 -8 ----------- Run | Yrd Mat Min Mat Min Exi Min Mat Gar Sto Matter Collected 2391 | 214 189 54 913 268 . 376 . 152 225 Remotely . | . . . . . . . . . . Salvage Created 3455 | . 480 189 1444 374 . 426 . 275 267 Parts 209 | . 30 10 99 23 . 15 . 22 10 Haulers Intercepted 5 | . 2 . 3 . . . . . . Recyclers Shooed 1 | . . . . . . . . . 1 Parts Field Recycled . | . . . . . . . . . . Retrieved Matter . | . . . . . . . . . . Parts Self-Destructed . | . . . . . . . . . . Prevented . | . . . . . . . . . . Kills | -11 -10 -10 -9 -9 -9 -8 -8 -8 -8 ------- Run | Yrd Mat Min Mat Min Exi Min Mat Gar Sto Combat Hostiles Destroyed 79 | . 12 8 28 10 . 8 . 7 6 Guns 78 | . 12 8 27 10 . 8 . 7 6 AOE 1 | . . . 1 . . . . . . Classes Destroyed 11 | . 5 . 3 1 . 1 . 1 . Worker 1 | . 1 . . . . . . . . Builder 3 | . . . 3 . . . . . . Hauler 5 | . 2 . 3 . . . . . . Recycler 4 | . . . 2 2 . . . . . Operator 5 | . 1 . 4 . . . . . . Swarmer 32 | . 6 6 13 7 . . . . . Grunt 26 | . 6 2 7 2 . 6 . . 3 Brawler 1 | . . . . . . 1 . . . Duelist 3 | . . . . 1 . 1 . . 1 Sentry 13 | . . . 8 . . . . 3 2 Programmer 4 | . . . . . . . . 4 . Best Kill Streak 8 | . 4 5 8 4 . 4 . 3 3 Combat Bots Only 6 | . 3 5 6 4 . 4 . 3 3 Max Kills in Single Turn 3 | . 2 1 3 2 . 2 . 1 1 Gunslinging 1 | . 1 . 1 1 . 1 . . . Exploded 1 | . . . 1 . . . . . . Melee . | . . . . . . . . . . Uniques/NPCs Destroyed . | . . . . . . . . . . Combat | -11 -10 -10 -9 -9 -9 -8 -8 -8 -8 -------- Run | Yrd Mat Min Mat Min Exi Min Mat Gar Sto Hostile Shots Fired 443 | . 69 31 123 55 . 45 . 32 88 Missed 90 | . 14 9 24 16 . 7 . 4 16 Hits 353 | . 55 22 99 39 . 38 . 28 72 Melee 15 | . . . . 4 . 8 . . 3 Projectile 338 | . 55 22 99 35 . 30 . 28 69 Critical Strikes 13 | . 1 . 6 1 . 1 . 2 2 Part Disruptions 1 | . . . 1 . . . . . . Damage Taken 4823 | . 539 226 1144 431 . 725 . 361 1397 Core 1026 | . 83 69 143 58 . 117 . 26 530 Absorbed by Shields . | . . . . . . . . . . Ignored by Resistances 48 | . . . . . . . . 48 . Core Remaining (%) 53 | 100 . 39 . . . 20 . . . Volleys Fired 281 | . 41 21 98 33 . 35 1 19 33 Largest 2 | . 2 2 2 2 . 2 2 2 2 Hottest 70 | . 70 70 70 50 . 50 50 50 50 Shots Fired 527 | . 82 41 193 50 . 68 2 38 53 Gun 527 | . 82 41 193 50 . 68 2 38 53 Cannon . | . . . . . . . . . . Launcher . | . . . . . . . . . . Special . | . . . . . . . . . . Kinetic 460 | . 41 20 188 50 . 68 2 38 53 Thermal 67 | . 41 21 5 . . . . . . Explosive . | . . . . . . . . . . Electromagnetic . | . . . . . . . . . . Robot Hit Streak 23 | . 12 10 12 5 . 7 . 23 5 Robot Miss Streak 10 | . 4 2 10 4 . 2 2 2 4 Penetration Max . | . . . . . . . . . . Secondary Targets 11 | . 1 . 5 2 . 2 . . 1 Max Gunslinging Chain 1 | . 1 . 1 1 . 1 . . 1 Shots Hit Robots 339 | . 56 27 115 28 . 49 . 30 34 Core Hits 159 | . 26 13 58 15 . 17 . 17 13 Critical Kills 3 | . . . 2 . . . . . 1 Critical Parts Destroyed 2 | . . . . 1 . 1 . . . Critical Strikes 10 | . 4 1 2 1 . 1 . . 1 Burn 5 | . 4 1 . . . . . . . Destroy 5 | . . . 2 1 . 1 . . 1 Melee Attacks 4 | . . . . . . . . 4 . Impact . | . . . . . . . . . . Slashing 4 | . . . . . . . . 4 . Piercing . | . . . . . . . . . . Sneak Attacks . | . . . . . . . . . . Combat Hostiles . | . . . . . . . . . . Follow-up Attacks . | . . . . . . . . . . Damage Inflicted 5785 | . 706 315 1986 463 . 874 . 759 682 Guns 5626 | . 706 315 1827 463 . 874 . 759 682 Cannons . | . . . . . . . . . . Explosions 159 | . . . 159 . . . . . . Melee . | . . . . . . . . . . Ramming . | . . . . . . . . . . Kinetic 4961 | . 319 102 1762 463 . 874 . 759 682 Thermal 665 | . 387 213 65 . . . . . . Explosive . | . . . . . . . . . . Electromagnetic 159 | . . . 159 . . . . . . Impact . | . . . . . . . . . . Slashing . | . . . . . . . . . . Piercing . | . . . . . . . . . . Highest Corruption 12 | . . . 10 10 10 12 . 1 1 Average Corruption 8 | . . . 9 10 10 11 . 1 1 Corruption Purged . | . . . . . . . . . . Corruption Blocked . | . . . . . . . . . . Effects 90 | . . . 17 34 15 20 . . 4 Message Errors 19 | . . . 3 8 3 5 . . . Matter Fused 16 | . . . 2 8 2 3 . . 1 Heat Flow Errors 11 | . . . 4 5 1 1 . . . Energy Discharges 13 | . . . 1 4 3 4 . . 1 Parts Rejected 2 | . . . 1 . . 1 . . . Parts Fused 2 | . . . 1 . 1 . . . . Data Loss (minor) 8 | . . . . 1 2 4 . . 1 Data Loss (major) 3 | . . . 1 1 1 . . . . Misfires 5 | . . . 1 4 . . . . . Alerts 4 | . . . . 1 2 1 . . . Weapon Failures 7 | . . . 3 2 . 1 . . 1 Overload Shots . | . . . . . . . . . . Overflow Damage . | . . . . . . . . . . Projectiles . | . . . . . . . . . . Explosions . | . . . . . . . . . . Melee . | . . . . . . . . . . Knockbacks . | . . . . . . . . . . Impact . | . . . . . . . . . . Kinetic . | . . . . . . . . . . Secondary . | . . . . . . . . . . Self-Inflicted Damage 66 | . . . 66 . . . . . . Shots 2 | . . . 2 . . . . . . Rammed . | . . . . . . . . . . Targets Rammed 1 | . . . . . . . . . 1 Kicked 1 | . . . . . . . . . 1 Crushed . | . . . . . . . . . . Highest Temperature 750 | . 186 226 312 294 115 229 30 235 750 Average Temperature 112 | . 44 80 70 90 63 81 17 102 351 Received Heat Transfer 1599 | . 171 66 375 60 . 270 . 54 603 Effects 40 | . . . . 1 . 1 . . 38 Shutdowns 5 | . . . . . . . . . 5 Energy Bleed 5 | . . . . . . 1 . . 4 Interference 7 | . . . . 1 . . . . 6 Matter Decay 7 | . . . . . . . . . 7 Short Circuit 2 | . . . . . . . . . 2 Damage (minor) 2 | . . . . . . . . . 2 Damage (major) 9 | . . . . . . . . . 9 Damage (core) 3 | . . . . . . . . . 3 Siege Activations . | . . . . . . . . . . Martial Activations . | . . . . . . . . . . Shielding Activations . | . . . . . . . . . . Robots Disrupted . | . . . . . . . . . . Combat Hostiles . | . . . . . . . . . . Robots Corrupted . | . . . . . . . . . . Combat Hostiles . | . . . . . . . . . . Parts Fried 1 | . . . 1 . . . . . . Impact Corruptions . | . . . . . . . . . . Robots Melted . | . . . . . . . . . . Combat Hostiles . | . . . . . . . . . . Parts Melted 4 | . 4 . . . . . . . . Heat Transferred 2331 | . 1443 703 185 . . . . . . Parts Sabotaged . | . . . . . . . . . . Parts Stolen . | . . . . . . . . . . Parts Stripped . | . . . . . . . . . . Power Chain Reactions 1 | . . . 1 . . . . . . Alert | -11 -10 -10 -9 -9 -9 -8 -8 -8 -8 ------- Run | Yrd Mat Min Mat Min Exi Min Mat Gar Sto Maximum Alert Level 2 | . . . 2 1 . . . . . Low Security (%) 81 | 100 100 100 56 54 . 100 100 100 100 Level 1 11 | . . . 10 45 . . . . . Level 2 7 | . . . 32 . . . . . . Level 3 . | . . . . . . . . . . Level 4 . | . . . . . . . . . . Level 5 . | . . . . . . . . . . High Security . | . . . . . . . . . . Max Security . | . . . . . . . . . . Peak Influence 481 | . 179 98 481 277 . 118 43 179 101 Initial 187 | . . 58 11 187 . . 39 . 87 Average 116 | . 89 45 215 165 . 20 12 119 64 Influence Increases 2354 | . 375 243 884 255 . 250 4 189 154 Destroy 0b10 Robot/C 1620 | . 240 200 560 200 . 160 . 140 120 Destroy 0b10 Robot/NC 90 | . 20 . 60 10 . . . . . Destroy Leader 360 | . 54 40 176 30 . 30 . . 30 Allied During Kill 3 | . . 3 . . . . . . . Successful Hack 44 | . 16 . 6 . . . 4 14 4 Disable Machine 60 | . 15 . 45 . . . . . . Destroy Structure 27 | . . . 7 . . . . 20 . Partial Spotted 15 | . . . 15 . . . . . . Lose Combat Pursuer 135 | . 30 . 15 15 . 60 . 15 . Influence Decreases 2343 | . 223 366 432 706 30 148 106 10 322 Entered New Map 591 | . . 94 18 294 30 . 63 . 92 Time Decay 1452 | . 223 222 324 392 . 128 43 . 120 Lost Part 260 | . . 50 50 20 . 20 . 10 110 Purge Threat 40 | . . . 40 . . . . . . Squads Dispatched 8 | . 2 . 4 . . . 1 . 1 Investigation 3 | . 1 . 1 . . . . . 1 Extermination . | . . . . . . . . . . Reinforcement 5 | . 1 . 3 . . . 1 . . Assault . | . . . . . . . . . . Garrison . | . . . . . . . . . . Intercept . | . . . . . . . . . . Searches Triggered . | . . . . . . . . . . Construction Impeded . | . . . . . . . . . . Haulers Reinforced . | . . . . . . . . . . Active Scanning Responses . | . . . . . . . . . . Cargo Convoy Interrupts . | . . . . . . . . . . Stealth | -11 -10 -10 -9 -9 -9 -8 -8 -8 -8 --------- Run | Yrd Mat Min Mat Min Exi Min Mat Gar Sto Distress Signals 5 | . 1 . 3 . . . . . 1 Communications Jammed . | . . . . . . . . . . Distress Signals . | . . . . . . . . . . Times Spotted 115 | . 20 10 43 11 . 12 . 7 12 Peak Tracking Total 7 | . 5 3 7 4 . 4 1 5 6 Tactical Retreats 7 | . 2 . 1 1 . 2 . 1 . Traps | -11 -10 -10 -9 -9 -9 -8 -8 -8 -8 ------- Run | Yrd Mat Min Mat Min Exi Min Mat Gar Sto Traps Triggered 4 | . 1 . 1 . . . . 1 1 Indirectly . | . . . . . . . . . . Trap Hack Attempts . | . . . . . . . . . . Triggered . | . . . . . . . . . . Disarmed . | . . . . . . . . . . Reprogrammed . | . . . . . . . . . . Reused . | . . . . . . . . . . Traps Extracted . | . . . . . . . . . . Installed . | . . . . . . . . . . Triggered . | . . . . . . . . . . Machines | -11 -10 -10 -9 -9 -9 -8 -8 -8 -8 ---------- Run | Yrd Mat Min Mat Min Exi Min Mat Gar Sto Machines Disabled 5 | . 1 . 4 . . . . . . Max in Single Turn 2 | . 1 . 2 . . . . . . Machines Repaired . | . . . . . . . . . . Machines Dismantled . | . . . . . . . . . . Machines Sabotaged . | . . . . . . . . . . Overloaded Fab Kills . | . . . . . . . . . . Hacking | -11 -10 -10 -9 -9 -9 -8 -8 -8 -8 --------- Run | Yrd Mat Min Mat Min Exi Min Mat Gar Sto Machines Accessed 11 | . 3 . 2 . 2 . 1 1 2 Terminals 8 | . 3 . 2 . . . . 1 2 Fabricators . | . . . . . . . . . . Repair Stations . | . . . . . . . . . . Recycling Units . | . . . . . . . . . . Scanalyzers . | . . . . . . . . . . Garrison Access 1 | . . . . . . . 1 . . Total Hacks 18 | . 5 . 4 . 5 . 1 1 2 Successful 11 | . 1 . 2 . 5 . 1 1 1 Failed 7 | . 4 . 2 . . . . . 1 Catastrophic 1 | . . . . . . . . . 1 Database Lockouts . | . . . . . . . . . . Manual 11 | . 5 . 4 . 1 . . . 1 Terminals 12 | . 5 . 4 . . . . 1 2 Fabricators . | . . . . . . . . . . Repair Stations . | . . . . . . . . . . Recycling Units . | . . . . . . . . . . Scanalyzers . | . . . . . . . . . . Garrison Access 1 | . . . . . . . 1 . . Terminal Hacks 8 | . . . 1 . 5 . . 1 1 Record 4 | . . . . . 4 . . . . Open Door 1 | . . . . . . . . . 1 Unreport Threat 1 | . . . 1 . . . . . . Garrison Registry 1 | . . . . . . . . 1 . Proto ID Catalog 1 | . . . . . 1 . . . . Fabricator Hacks . | . . . . . . . . . . Repair Station Hacks . | . . . . . . . . . . Recycling Unit Hacks . | . . . . . . . . . . Scanalyzer . | . . . . . . . . . . Garrison Access Hacks 1 | . . . . . . . 1 . . Unlock Access 1 | . . . . . . . 1 . . Unauthorized Hacks 2 | . 1 . 1 . . . . . . Terminals 2 | . 1 . 1 . . . . . . Operators 2 | . 1 . 1 . . . . . . Fabricators . | . . . . . . . . . . Repair Stations . | . . . . . . . . . . Recycling Units . | . . . . . . . . . . Scanalyzers . | . . . . . . . . . . Garrison Access . | . . . . . . . . . . Data Cores Recovered 1 | . . . 1 . . . . . . Used . | . . . . . . . . . . Hacking Detections 6 | . 2 . 1 . . . 1 1 1 Full Trace Events . | . . . . . . . . . . Feedback Events . | . . . . . . . . . . Feedback Blocked . | . . . . . . . . . . Robot Schematics Acquired . | . . . . . . . . . . Robots Built . | . . . . . . . . . . Authchips . | . . . . . . . . . . Time . | . . . . . . . . . . Total Robot Build Rating . | . . . . . . . . . . Part Schematics Acquired . | . . . . . . . . . . Parts Built . | . . . . . . . . . . Authchips . | . . . . . . . . . . Time . | . . . . . . . . . . Total Part Build Rating . | . . . . . . . . . . Parts Repaired . | . . . . . . . . . . Time . | . . . . . . . . . . Parts Recycled . | . . . . . . . . . . Recycled Matter . | . . . . . . . . . . Retrieved Matter . | . . . . . . . . . . Retrieved Components . | . . . . . . . . . . Parts Scanalyzed . | . . . . . . . . . . Part Schematics Acquired . | . . . . . . . . . . Parts Damaged . | . . . . . . . . . . Bothacking | -11 -10 -10 -9 -9 -9 -8 -8 -8 -8 ------------ Run | Yrd Mat Min Mat Min Exi Min Mat Gar Sto Used RIF Installer 1 | . . . . . . . . 1 . Robots Hacked . | . . . . . . . . . . Non-combat . | . . . . . . . . . . Combat . | . . . . . . . . . . Robot Hacks Applied . | . . . . . . . . . . Relay Couplers Released . | . . . . . . . . . . Fabnet Peak Effective % . | . . . . . . . . . . Robots Rewired . | . . . . . . . . . . Allies Hacked . | . . . . . . . . . . Hacks Repelled . | . . . . . . . . . . Allies | -11 -10 -10 -9 -9 -9 -8 -8 -8 -8 -------- Run | Yrd Mat Min Mat Min Exi Min Mat Gar Sto Total Allies 1 | . . 1 . . . . . . . Largest Group 1 | . . 1 1 . . . . . . Highest-Rated Group 31 | . . 31 31 . . . . . . Highest-Rated Ally 31 | . . 31 31 . . . . . . Total Orders . | . . . . . . . . . . Ally Attacks 7 | . . 4 3 . . . . . . Total Damage 123 | . . 82 41 . . . . . . Kills 2 | . . 2 . . . . . . . Allies Corrupted . | . . . . . . . . . . Allies Melted . | . . . . . . . . . . Intel | -11 -10 -10 -9 -9 -9 -8 -8 -8 -8 ------- Run | Yrd Mat Min Mat Min Exi Min Mat Gar Sto Active Infowar (turns) 2 | . . . . . 2 . . . . Cloaking 2 | . . . . . 2 . . . . Robot Analysis Total . | . . . . . . . . . . Derelict Logs Recovered 3 | . . 1 . 2 . . . . . Drone Launches . | . . . . . . . . . . Drone Recoveries . | . . . . . . . . . . Exploration | -11 -10 -10 -9 -9 -9 -8 -8 -8 -8 ------------- Run | Yrd Mat Min Mat Min Exi Min Mat Gar Sto Turns Passed 5276 | 90 736 466 1038 939 558 569 177 455 248 Spaces Moved 2644 | 54 358 295 423 534 344 255 87 220 74 Core 11 | 10 . . . . . . . . 1 Treads 2345 | 44 358 67 366 534 344 255 87 220 70 Legs 12 | . . . 9 . . . . . 3 Wheels 276 | . . 228 48 . . . . . . Hover . | . . . . . . . . . . Flight . | . . . . . . . . . . Fastest Speed 50 | 50 160 100 115 160 160 160 160 160 160 Average Speed 155 | 139 160 125 154 160 160 160 160 160 168 Slowest Speed 600 | 160 160 240 190 160 160 160 160 160 600 Overloaded Moves . | . . . . . . . . . . Propulsion Burnouts . | . . . . . . . . . . Robots Hopped . | . . . . . . . . . . Potential Cave-ins . | . . . . . . . . . . Cave-ins Triggered . | . . . . . . . . . . Exploration Rate (%) 43 | 4 67 47 37 94 76 52 8 32 21 Regions Visited 9 Branch Regions 5 Pre-discovered Areas 2 | . . 1 . . 1 . . . . Known Exits Taken 1 | . . . . . . . 1 . . Unknown Exits Taken 7 | 1 1 1 1 1 1 1 . . . Scrap Searched 4 | . . 2 . 2 . . . . . Spaces Dug . | . . . . . . . . . . Terrain Destroyed 4 | . . . 4 . . . . . . Melee . | . . . . . . . . . . Projectile . | . . . . . . . . . . AOE 4 | . . . 4 . . . . . . Terrain Rammed . | . . . . . . . . . . Walls Destroyed . | . . . . . . . . . . Machines Disabled . | . . . . . . . . . . Actions | -11 -10 -10 -9 -9 -9 -8 -8 -8 -8 --------- Run | Yrd Mat Min Mat Min Exi Min Mat Gar Sto Total 3408 | 69 440 353 680 582 354 372 123 285 150 Wait 310 | . 30 25 78 7 . 74 30 31 35 Move 2634 | 53 357 294 422 533 343 254 86 218 74 Hop . | . . . . . . . . . . Pick Up 60 | 10 8 8 21 3 1 5 1 2 1 Fast Attach 15 | . . . 9 . 2 . 3 1 . Attach 29 | 6 2 5 4 3 2 3 1 2 1 Detach 3 | . 1 . . . 2 . . . . Swap 29 | . . . 16 1 . 1 . 6 5 Drop 42 | . 1 . 32 2 4 . 1 2 . Fire 281 | . 41 21 98 33 . 35 1 19 33 Melee 4 | . . . . . . . . 4 . Ram . | . . . . . . . . . . Kick 1 | . . . . . . . . . 1 Crush . | . . . . . . . . . . Escape Stasis . | . . . . . . . . . . Rewire . | . . . . . . . . . . Trap . | . . . . . . . . . . Miscellaneous . | . . . . . . . . . . Route ------- -11/Scrapyard -10/Materials (discovered 2 exits: *Mat / [*Min]) -10/Mines -9/Materials -9/Mines (discovered 3 exits: *Mat x2 / *Exi) -9/Exiles -8/Mines -8/Materials (discovered 3 exits: Fac / Sto / Gar) -8/Garrison (discovered 3 exits: *Sto x3) -8/Storage History --------- Turn | Location | Event 5 | -11/Scrapyard | Discovered new exit (range 15) 91 | -11/Scrapyard | Entered Materials 300 | -10/Materials | Build established: Mutant 312 | -10/Materials | Discovered new exit (range 11) 804 | -10/Materials | Discovered new exit (range 12) 827 | -10/Materials | Entered Mines 968 | -10/Mines | Lost 3 parts (1p1n1w) 1021 | -10/Mines | Core integrity fell below 50% 1071 | -10/Mines | Escorted by a lone wolf Derelict 1091 | -10/Mines | Learned location of Storage (-8) 1232 | -10/Mines | Discovered new exit (range 13) 1286 | -10/Mines | Assembled infested the area 1291 | -10/Mines | Assisted by a Guerilla fighting off Assembled 1293 | -10/Mines | Entered Materials 1293 | -9/Materials | Accompanied by 1 ally 1293 | -9/Materials | Evolved 2 slots: Propulsion x1, Utility x1 1675 | -9/Materials | Build established: Scavenger-Mutant 1909 | -9/Materials | Discovered new exit (range 16) 1912 | -9/Materials | System corruption reached 10% 2331 | -9/Materials | Entered Mines 2398 | -9/Mines | Discovered new exit (range 8) 2557 | -9/Mines | Received a Rocket Launcher from a helpful Derelict 2585 | -9/Mines | Learned Materials non-interactive machine intel 2648 | -9/Mines | Core integrity fell below 50% 2709 | -9/Mines | Learned location of 1 exit from Materials 3046 | -9/Mines | Discovered new exit (range 10) 3262 | -9/Mines | Deemed a non-threat by the Exiles lab entrance 3264 | -9/Mines | Discovered new exit (range 5) 3270 | -9/Mines | Entered Exiles 3309 | -9/Exiles | Met 8R-AWN 3339 | -9/Exiles | Met EX-HEX 3389 | -9/Exiles | Met EX-BIN 3411 | -9/Exiles | Aligned with FarCom system 3413 | -9/Exiles | Given EX-Vault access code 3451 | -9/Exiles | Opened EX-Vault 3461 | -9/Exiles | Found Cloak of Protection 3501 | -9/Exiles | Warned to stay clear of 0b10 Research branches 3546 | -9/Exiles | Met EX-DEC 3561 | -9/Exiles | Learned location of Zion (-6) 3690 | -9/Exiles | Visited The Gauntlet 3812 | -9/Exiles | Discovered new exit (range 10) 3828 | -9/Exiles | Left Exiles lab with Cloak of Protection 3828 | -9/Exiles | Entered Mines 4389 | -8/Mines | Discovered new exit (range 6) 4397 | -8/Mines | Entered Materials 4397 | -8/Materials | Evolved 2 slots: Propulsion x1, Utility x1 4398 | -8/Materials | Identified exit to Storage 4399 | -8/Materials | Identified exit to Factory 4400 | -8/Materials | Loaded intel: 30 non-interactive machine locations 4411 | -8/Materials | Identified exit to Garrison 4574 | -8/Materials | Entered Garrison 4592 | -8/Garrison | Discovered exit to Storage (range 72) 4592 | -8/Garrison | Discovered exit to Storage (range 46) 4592 | -8/Garrison | Discovered exit to Storage (range 53) 4664 | -8/Garrison | Triggered checkpoint 4863 | -8/Garrison | Installed Relay Interface Framework 5029 | -8/Garrison | Entered Storage 5245 | -8/Storage | Core integrity fell below 50% 5266 | -8/Storage | Core integrity fell below 20% 5277 | -8/Storage | Destroyed by G-47 Trooper with Particle Gun Last Messages --------------- Overheating: Hpw. Shotgun damaged (-33). Overheating: Lrg. Storage Unit damaged (-88). R-06 Scavenger collects Particle Gun. Hpw. Shotgun destroyed. K-01 Serf collects debris. Overheating: Matter decay (-30). Overheating: Core damaged (-82). K-01 Serf cleans the Terminal. Enh. Autogun broken. Overheating: Short circuit. Kicked K-01 Serf. Broken Enh. Autogun destroyed. K-01 Serf cleans the Terminal. Mic. Nuclear Core destroyed. K-01 Serf cleans the Terminal. K-01 Serf collects debris. Overheating: Aluminum Leg damaged (-42). Overheating: Lrg. Storage Unit damaged (-31). K-01 Serf cleans the Terminal. Aluminum Leg destroyed. Map ----- +----------------------------------------------------+ | ??????????????????????????????# + ]#???????? | | ??????????????????????????????# # ]]#???????? | | ??????????????????????????????# ######???????? | | ??????????????????????????????# #????????????? | | ??????????????????????????????# ##########???? | | ??????????????????????????????# # #???? | | ??????????????????????????????# # """ #???? | | ??????????????????????????????# # """ #???? | | ??????????????????????????????# # """ ! #???? | | ?????????????????????########## # #???? | | ?????????????????????# ## + """ #???? | | ?????????????????????+ ## # """ #???? | | ?????????????????????# ## # """ #???? | | ?????????????????????# [ + # #???? | | ?????????????????????# ## ####"T"###???? | | ?????????????????????# ## #??#####?????? | | ?????????????????????#/ ## #????????????? | | ????????????????#????# ## #????????????? | | ????????????????# ???# ## #????????????? | | ????????????????# ??# ## #????????????? | | ???????????????##k ?# [%=! ## #????????????? | | ???????????????# ####+##### #????????????? | | ?????????????? # " * g #????????????? | | ????????? / "T g #????????????? | | ???????????????# #????????????? | | ???????????????#[ ####@#########????????????? | | ???????????????## ??? ???????????????????? | | ????????????????# ???## ?????????????????? | | ????????????????# ?????# ???????????????? | | ????????????????#w?????" #?????????????? | | ?????????????????w????R #?????????????? | | ????????????????o?????"" """ """ #?????????????? | | ??????????????????????## """ """ #?????????????? | | ???????????????????????# """ """ #?????????????? | | ???????????????????????########??#?????????????? | | ???????????????????????????????????????????????? | | ???????????????????????????????????????????????? | | ???????????????????????????????????????????????? | | ???????????????????????????????????????????????? | | ???????????????????????????????????????????????? | | ???????????????????????????????????????????????? | | ???????????????????????????????????????????????? | | ???????????????????????????????????????????????? | | ???????????????????????????????????????????????? | | ???????????????????????????????????????????????? | | ???????????????????????????????????????????????? | | ???????????????????????????????????????????????? | | ???????????????????????????????????????????????? | | ???????????????????????????????????????????????? | | ???????????????????????????????????????????????? | +----------------------------------------------------+ Best States ------------- Heat Dissipation 31 Energy Generation 15 Energy Capacity 265 Matter Stores 300 Matter Capacity 300 Sight Range 16 Terrain Scan Density 10 Armor Coverage 450 Resistance: EM 15 Evasion (%) 50 Recoil Reduction 4 Item Schematics ----------------- None Robot Schematics ------------------ None Fabricated ------------ Nothing Repaired ---------- Nothing Alien Tech Used ----------------- None Achievements -------------- None Challenges ------------ None Game ------ Seed LatentRingBallwheel Manual? 0 Play Time 00:38:06 Cumulative 157.8 hours Start 2025.08.30 @ 10:26:01 End 2025.08.30 @ 11:02:01 Sessions 1 Manual Loads 0 Difficulty Rogue Special Mode None Game No. 140 Rogue 140 Adventurer 0 Explorer 0 Win Type - Total 7 Types 2/0/2/2/0/0/0/0/0/1 Lore% 84 Gallery% 80 Achievement% 60 Wizard Run 0 Options --------- Layout 1 ASCII 0 Keyboard 0 Movement Numpad Keybinds 0 Fullscreen 1 Font 24/Proggy Map View 50x35 Zoom Use 0% Tactical HUD 0 Map Filters NONE Filters NONE Steam 1 RUN: ffba204a-8f90-478b-bad3-9dbfbec6326b